fUSD/lending_fUSD_20260518
["ID","MTS","AMOUNT","RATE_DAILY","PERIOD"]
[422534029,1779040250000,-500.0,0.00038313,120]
[422534000,1779040250000,-4790.99295835,0.000382,30]
[422533971,1779040250000,-350.0,0.00038117,10]
[422534084,1779040250000,-500.0,0.00038356,2]
[422534088,1779040250000,-500.0,0.00038356,2]
[422534157,1779040250000,-300.0,0.00038356,2]
[422534148,1779040250000,-300.0,0.00038356,2]
[422534151,1779040250000,-300.0,0.00038356,2]
[422534161,1779040250000,-300.0,0.00038356,2]
[422534164,1779040250000,-300.0,0.00038356,2]
[422534186,1779040250000,-350.0,0.0003845,11]
[422534168,1779040250000,-163.53372958,0.00038356,2]
[422534172,1779040250000,-215.43604957,0.00038356,2]
[422534177,1779040250000,-601.6383832,0.00038356,15]
[422534166,1779040250000,-300.0,0.00038356,2]
[422534179,1779040250000,-150.0,0.00038387,7]
[422534170,1779040250000,-500.0,0.00038356,120]
[422534159,1779040250000,-300.0,0.00038356,2]
[422534174,1779040250000,-601.6383832,0.00038356,15]
[422534181,1779040250000,-150.0,0.00038387,7]
[422534188,1779040250000,-529.08690105,0.00038467,2]
[422534190,1779040250000,-152.0,0.000385,120]
[422534192,1779040250000,-247.0,0.000385,120]
[422534201,1779040250000,-150.0,0.00038539,7]
[422534204,1779040250000,-4554.81349112,0.00038551,2]
[422534195,1779040250000,-150.0,0.00038508,7]
[422534197,1779040250000,-150.0,0.00038508,7]
[422534086,1779040250000,-500.0,0.00038356,2]
[422534208,1779040250000,-150.0,0.00038631,7]
[422534206,1779040250000,-165.55,0.0003862,110]
[422534210,1779040250000,-358.16848099,0.00038638,2]
[422534183,1779040250000,-150.0,0.00038446,7]
[422534155,1779040250000,-300.0,0.00038356,2]
[422534199,1779040250000,-164.16086875,0.0003852,120]
[422534153,1779040250000,-300.0,0.00038356,2]
[422534146,1779040250000,-300.0,0.00038356,2]
[422534090,1779040250000,-500.0,0.00038356,2]
[422534102,1779040250000,-500.0,0.00038356,2]
[422534094,1779040250000,-500.0,0.00038356,2]
[422534098,1779040250000,-500.0,0.00038356,2]
[422534104,1779040250000,-500.0,0.00038356,2]
[422534106,1779040250000,-500.0,0.00038356,2]
[422534099,1779040250000,-500.0,0.00038356,2]
[422534095,1779040250000,-500.0,0.00038356,2]
[422534110,1779040250000,-500.0,0.00038356,2]
[422534108,1779040250000,-500.0,0.00038356,2]
[422534112,1779040250000,-500.0,0.00038356,2]
[422534114,1779040250000,-500.0,0.00038356,2]
[422534092,1779040250000,-500.0,0.00038356,2]
[422534118,1779040250000,-500.0,0.00038356,2]
[422534116,1779040250000,-500.0,0.00038356,2]
[422534139,1779040250000,-300.0,0.00038356,2]
[422534135,1779040250000,-290.81570487,0.00038356,2]
[422534133,1779040250000,-500.0,0.00038356,2]
[422534124,1779040250000,-500.0,0.00038356,2]
[422534141,1779040250000,-300.0,0.00038356,2]
[422534126,1779040250000,-500.0,0.00038356,2]
[422534128,1779040250000,-500.0,0.00038356,2]
[422534130,1779040250000,-500.0,0.00038356,2]
[422534144,1779040250000,-300.0,0.00038356,2]
[422534122,1779040250000,-500.0,0.00038356,2]
[422534137,1779040250000,-300.0,0.00038356,2]
[422534120,1779040250000,-479.53604544,0.00038356,2]
[422534262,1779040251000,-11589.41,0.00039,9]
[422534268,1779040251000,-150.0,0.00039039,7]
[422534266,1779040251000,-1351.6533,0.0003902,108]
[422534273,1779040251000,-150.0,0.00039111,7]
[422534274,1779040251000,-161.90236365,0.00039134,2]
[422534264,1779040251000,-150.0,0.00039002,7]
[422534271,1779040251000,-165.55,0.0003911,118]
[422534270,1779040251000,-150.0,0.00039094,7]
[422534269,1779040251000,-150.0,0.00039039,30]
[422534267,1779040251000,-161.90236365,0.00039034,2]
[422534265,1779040251000,-1351.65329,0.0003902,108]
[422534286,1779040251000,-1012.270904,0.0003925,120]
[422534276,1779040251000,-150.0,0.00039172,7]
[422534285,1779040251000,-154.48455968,0.00039205,30]
[422534278,1779040251000,-500.0,0.00039178,120]
[422534284,1779040251000,-153.0,0.000392,120]
[422534275,1779040251000,-3209.4415749,0.00039137,2]
[422534282,1779040251000,-150.0,0.00039187,7]
[422534277,1779040251000,-150.0,0.00039172,7]
[422534280,1779040251000,-958.358,0.00039178,120]
[422534279,1779040251000,-500.0,0.00039178,120]
[422534283,1779040251000,-200.0,0.00039199,120]
[422534272,1779040251000,-150.0,0.00039111,7]
[422534257,1779040251000,-56389.24943184,0.00039,30]
[422534232,1779040251000,-60969.0,0.000388,30]
[422534259,1779040251000,-247.0,0.00039,120]
[422534213,1779040251000,-195.49004,0.000387,43]
[422534215,1779040251000,-954.58977359,0.00038713,120]
[422534217,1779040251000,-150.0,0.00038724,7]
[422534219,1779040251000,-150.0,0.00038749,7]
[422534222,1779040251000,-150.0,0.00038749,7]
[422534234,1779040251000,-150.0,0.00038817,7]
[422534230,1779040251000,-152.0,0.00038768,7]
[422534226,1779040251000,-247.0,0.0003875,120]
[422534228,1779040251000,-877.4772,0.00038758,30]
[422534224,1779040251000,-247.0,0.0003875,120]
[422534238,1779040251000,-150.0,0.0003884,7]
[422534237,1779040251000,-150.0,0.0003884,7]
[422534240,1779040251000,-150.0,0.0003884,7]
[422534242,1779040251000,-152.0,0.000389,120]
[422534245,1779040251000,-2000.0,0.000389,7]
[422534247,1779040251000,-150.0,0.00038909,7]
[422534249,1779040251000,-161.90236365,0.00038934,2]
[422534251,1779040251000,-278.89344322,0.00038951,2]
[422534253,1779040251000,-354.0,0.00038958,14]
[422534256,1779040251000,-200.0,0.00039,16]
[422534260,1779040251000,-247.0,0.00039,120]
[422534255,1779040251000,-354.0,0.00038958,14]
[422534258,1779040251000,-152.0,0.00039,30]
[422534261,1779040251000,-248720.63,0.00039,9]
[422534281,1779040251000,-1000.0,0.00039183,2]
[422534263,1779040251000,-28044.31,0.00039,9]
[422534293,1779040251000,-926.0,0.00039281,2]
[422534341,1779040251000,-1000.0,0.00039412,2]
[422534330,1779040251000,-260.279999,0.000394,46]
[422534343,1779040251000,-1000.0,0.00039412,2]
[422534345,1779040251000,-1000.0,0.00039412,2]
[422534347,1779040251000,-1000.0,0.00039412,2]
[422534350,1779040251000,-1000.0,0.00039412,2]
[422534360,1779040251000,-151.0,0.00039412,2]
[422534365,1779040251000,-1351.65329,0.00039412,113]
[422534367,1779040251000,-1351.65329,0.00039412,113]
[422534363,1779040251000,-603.13002352,0.00039412,2]
[422534352,1779040251000,-1000.0,0.00039412,2]
[422534354,1779040251000,-1000.0,0.00039412,2]
[422534356,1779040251000,-1000.0,0.00039412,2]
[422534358,1779040251000,-1008.41099095,0.00039412,2]
[422534371,1779040251000,-1351.65329,0.00039412,113]
[422534373,1779040251000,-240.22,0.00039444,120]
[422534377,1779040251000,-150.0,0.00039473,7]
[422534388,1779040251000,-76540.08517839,0.0003949,2]
[422534375,1779040251000,-150.0,0.00039465,7]
[422534380,1779040251000,-150.0,0.00039473,7]
[422534382,1779040251000,-300.0,0.00039489,10]
[422534384,1779040251000,-3716.45924463,0.0003949,2]
[422534287,1779040251000,-247.0,0.0003925,120]
[422534332,1779040251000,-2313.0,0.000394,11]
[422534336,1779040251000,-1586.0,0.000394,11]
[422534369,1779040251000,-1351.65329,0.00039412,113]
[422534324,1779040251000,-2313.0,0.00039399,11]
[422534334,1779040251000,-152.0,0.000394,120]
[422534289,1779040251000,-161.0,0.00039268,11]
[422534297,1779040251000,-417.0,0.00039281,2]
[422534290,1779040251000,-198.07120557,0.00039269,60]
[422534292,1779040251000,-3543.0,0.00039281,2]
[422534291,1779040251000,-150.0,0.0003928,7]
[422534294,1779040251000,-1270.0,0.00039281,2]
[422534295,1779040251000,-930.0,0.00039281,2]
[422534299,1779040251000,-1169.88,0.000393,120]
[422534300,1779040251000,-852.48281192,0.00039313,11]
[422534302,1779040251000,-852.48281182,0.00039313,11]
[422534304,1779040251000,-852.48281182,0.00039313,11]
[422534288,1779040251000,-150.0,0.0003925,7]
[422534338,1779040251000,-245.12,0.000394,19]
[422534328,1779040251000,-163.0,0.000394,11]
[422534306,1779040251000,-852.48281182,0.00039313,11]
[422534326,1779040251000,-163.0,0.00039399,11]
[422534318,1779040251000,-852.48281182,0.00039313,11]
[422534320,1779040251000,-150.0,0.00039372,7]
[422534322,1779040251000,-154.48455968,0.00039397,30]
[422534312,1779040251000,-852.48281182,0.00039313,11]
[422534314,1779040251000,-852.48281182,0.00039313,11]
[422534315,1779040251000,-852.48281182,0.00039313,11]
[422534308,1779040251000,-852.48281182,0.00039313,11]
[422534316,1779040251000,-852.48281182,0.00039313,11]
[422534454,1779040252000,-159.75,0.00027788,7]
[422534447,1779040252000,-159.75,0.00026223,2]
[422534458,1779040252000,-166.33,0.0002863,2]
[422534451,1779040252000,-505.0,0.00027137,2]
[422534453,1779040252000,-154.53,0.00027788,7]
[422534460,1779040252000,-170.39,0.0002878,7]
[422534456,1779040252000,-154.53,0.00028571,30]
[422534470,1779040252000,-164.84,0.00028931,30]
[422534472,1779040252000,-170.43,0.00028931,30]
[422534450,1779040252000,-159.75,0.00027006,2]
[422534452,1779040252000,-6055.0,0.00027281,2]
[422534455,1779040252000,-505.0,0.00028033,2]
[422534434,1779040252000,-154.53,0.00024658,2]
[422534449,1779040252000,-154.53,0.00027006,2]
[422534448,1779040252000,-159.78,0.00026223,2]
[422534442,1779040252000,-159.78,0.0002544,7]
[422534432,1779040252000,-159.75,0.00024658,2]
[422534438,1779040252000,-159.75,0.0002544,7]
[422534426,1779040252000,-6055.0,0.00018281,2]
[422534428,1779040252000,-6055.0,0.00021281,2]
[422534436,1779040252000,-155.93,0.00024658,2]
[422534435,1779040252000,-159.78,0.00024658,2]
[422534445,1779040252000,-154.53,0.00026223,30]
[422534430,1779040252000,-6055.0,0.00024281,2]
[422534476,1779040252000,-170.39,0.00029082,2]
[422534457,1779040252000,-159.75,0.00028571,30]
[422534459,1779040252000,-170.43,0.0002863,2]
[422534440,1779040252000,-154.53,0.0002544,7]
[422534478,1779040252000,-164.84,0.00029082,2]
[422534504,1779040252000,-82775.07147582,0.0003949,2]
[422534499,1779040252000,-505.0,0.00036097,11]
[422534503,1779040252000,-505.0,0.00036993,12]
[422534502,1779040252000,-300.0,0.00036298,2]
[422534501,1779040252000,-300.0,0.00036298,2]
[422534500,1779040252000,-2296.239,0.00036281,2]
[422534498,1779040252000,-505.0,0.00035201,10]
[422534497,1779040252000,-505.0,0.00034305,9]
[422534494,1779040252000,-505.0,0.00032513,7]
[422534496,1779040252000,-505.0,0.00033409,8]
[422534492,1779040252000,-505.0,0.00030721,5]
[422534495,1779040252000,-6055.0,0.00033281,2]
[422534493,1779040252000,-505.0,0.00031617,6]
[422534474,1779040252000,-166.33,0.00028931,30]
[422534491,1779040252000,-6055.0,0.00030281,2]
[422534462,1779040252000,-166.33,0.0002878,7]
[422534461,1779040252000,-164.84,0.0002878,7]
[422534480,1779040252000,-170.43,0.00029082,2]
[422534466,1779040252000,-505.0,0.00028929,3]
[422534468,1779040252000,-170.39,0.00028931,30]
[422534464,1779040252000,-170.43,0.0002878,7]
[422534488,1779040252000,-170.46,0.00029232,7]
[422534482,1779040252000,-166.33,0.00029082,2]
[422534486,1779040252000,-164.85,0.00029232,7]
[422534484,1779040252000,-170.43,0.00029232,7]
[422534490,1779040252000,-505.0,0.00029825,4]
[422534489,1779040252000,-166.34,0.00029232,7]
[422534527,1779040384000,2000.0,0.0003013,120]
[422534528,1779040388000,2000.0,0.0003013,120]
[422534529,1779040427000,2000.0,0.0003013,120]
[422534530,1779040471000,2000.0,0.0003013,120]
[422534531,1779040788000,2000.0,0.0002762,120]
[422534533,1779040946000,2000.0,0.0003013,120]
[422534534,1779040956000,2000.0,0.0003013,120]
[422534535,1779040990000,2000.0,0.0003013,120]
[422534536,1779041000000,2000.0,0.0003013,120]
[422534537,1779041033000,2000.0,0.0003013,120]
[422534538,1779041044000,2000.0,0.0003013,120]
[422534539,1779041056000,537.09,6.215e-05,2]
[422534540,1779041056000,537.09,6.529e-05,2]
[422534541,1779041056000,537.09,6.843e-05,2]
[422534545,1779041057000,537.09,8.1e-05,2]
[422534544,1779041057000,537.09,7.786e-05,2]
[422534543,1779041057000,537.09,7.472e-05,2]
[422534542,1779041057000,537.09,7.158e-05,2]
[422534547,1779041058000,537.09,8.729e-05,2]
[422534546,1779041058000,537.09,8.415e-05,2]
[422534549,1779041058000,537.09,9.358e-05,2]
[422534550,1779041058000,537.09,9.672e-05,2]
[422534548,1779041058000,537.09,9.043e-05,2]
[422534551,1779041059000,537.09,9.986e-05,2]
[422534552,1779041059000,537.09,0.000103,2]
[422534553,1779041059000,537.09,0.00010615,2]
[422534554,1779041059000,537.09,0.00010929,2]
[422534555,1779041077000,2000.0,0.0003013,120]
[422534556,1779041096000,352.34471628,0.0001,2]
[422534557,1779041101000,2000.0,0.0003013,120]
[422534558,1779041109000,1178.13421325,0.0001,2]
[422534559,1779041119000,481.52157489,0.0001,2]
[422534560,1779041121000,2000.0,0.0003013,120]
[422534561,1779041125000,43049.41146015,9.04e-05,2]
[422534562,1779041201000,-537.09,0.00011243,2]
[422534563,1779041201000,-147.10427816,0.00011458,2]
[422534564,1779041204000,255.79,0.00030082,120]
[422534567,1779041257000,500.0,0.00027731,120]
[422534574,1779041432000,-150.0,0.00011781,2]
[422534573,1779041432000,-250.0,0.00011696,2]
[422534572,1779041432000,-167.62798052,0.00011557,2]
[422534571,1779041432000,-369.46201948,0.00011557,2]
[422534570,1779041432000,-250.0,0.00011508,2]
[422534569,1779041432000,-580.53798052,0.00011458,2]
[422534575,1779041432000,-173.92180963,0.00011793,2]
[422534627,1779041438000,-183.6,0.00012697,2]
[422534626,1779041438000,-295.08680176,0.00012697,2]
[422534625,1779041438000,-341.9173,0.00012658,2]
[422534622,1779041438000,-400.0,0.000126,4]
[422534621,1779041438000,-1500.0,0.000126,4]
[422534618,1779041438000,-700.0,0.000125,4]
[422534623,1779041438000,-250.0,0.00012604,2]
[422534637,1779041438000,-6770.80923414,0.00012698,2]
[422534619,1779041438000,-200.0,0.000125,4]
[422534620,1779041438000,-1913.9,0.00012511,2]
[422534624,1779041438000,-197.81098472,0.00012635,2]
[422534638,1779041438000,-2300.0,0.000127,4]
[422534634,1779041438000,-5000.0,0.00012698,2]
[422534628,1779041438000,-183.6,0.00012697,2]
[422534616,1779041438000,-255.79,0.00012329,2]
[422534636,1779041438000,-2500.0,0.00012698,2]
[422534633,1779041438000,-2000.0,0.00012698,2]
[422534630,1779041438000,-183.6,0.00012697,2]
[422534635,1779041438000,-79158.4938,0.00012698,2]
[422534632,1779041438000,-33183.3746,0.00012698,2]
[422534631,1779041438000,-63041.26698462,0.00012698,2]
[422534639,1779041438000,-700.0,0.000127,4]
[422534642,1779041438000,-350.89620679,0.000127,2]
[422534648,1779041438000,-151.0,0.00012795,2]
[422534640,1779041438000,-1667.97937432,0.000127,2]
[422534629,1779041438000,-183.6,0.00012697,2]
[422534617,1779041438000,-39519.82549059,0.00012462,2]
[422534610,1779041438000,-161.17581645,0.00012152,2]
[422534612,1779041438000,-537.09,0.00012186,2]
[422534646,1779041438000,-6013.0,0.00012767,2]
[422534589,1779041438000,-327.461221,0.00011734,2]
[422534590,1779041438000,-804.06555523,0.00011793,2]
[422534592,1779041438000,-537.09,0.00011872,2]
[422534593,1779041438000,-1555.52048757,0.00011905,2]
[422534591,1779041438000,-345.54263514,0.00011793,2]
[422534594,1779041438000,-102.07045757,0.00011905,2]
[422534596,1779041438000,-1913.9,0.00011916,2]
[422534595,1779041438000,-39519.82549063,0.00011905,2]
[422534601,1779041438000,-169.0,0.00011965,2]
[422534599,1779041438000,-300.0,0.00011964,2]
[422534597,1779041438000,-743.66210776,0.00011955,2]
[422534600,1779041438000,-2500000.0,0.00011965,2]
[422534598,1779041438000,-1200.0,0.00011964,2]
[422534603,1779041438000,-197.81098472,0.00012005,2]
[422534613,1779041438000,-10145.94509674,0.000122,2]
[422534607,1779041438000,-713.86219571,0.00012086,2]
[422534609,1779041438000,-1500000.0,0.00012113,2]
[422534606,1779041438000,-47713.9475621,0.00012065,2]
[422534605,1779041438000,-150.0,0.00012064,2]
[422534602,1779041438000,-170.97403995,0.00011965,2]
[422534614,1779041438000,-462.0422,0.00012211,2]
[422534608,1779041438000,-743.66210776,0.00012103,2]
[422534604,1779041438000,-1000.0,0.00012064,2]
[422534611,1779041438000,-39519.82549059,0.00012183,2]
[422534615,1779041438000,-1913.9,0.00012213,2]
[422534644,1779041438000,-39519.82549059,0.0001274,2]
[422534705,1779041438000,-154.55661821,0.00013518,2]
[422534654,1779041438000,-1108.99789053,0.00012797,3]
[422534681,1779041438000,-166.72,0.00013192,2]
[422534685,1779041438000,-347.62955012,0.00013354,2]
[422534691,1779041438000,-250.45734393,0.00013488,2]
[422534690,1779041438000,-150.0,0.00013488,2]
[422534692,1779041438000,-150.0,0.00013488,2]
[422534693,1779041438000,-217.9313898,0.00013488,2]
[422534696,1779041438000,-150.0,0.00013488,2]
[422534697,1779041438000,-150.0,0.00013488,2]
[422534700,1779041438000,-150.0,0.00013488,2]
[422534699,1779041438000,-150.0,0.00013488,2]
[422534694,1779041438000,-150.0,0.00013488,2]
[422534698,1779041438000,-150.0,0.00013488,2]
[422534701,1779041438000,-154.55661821,0.00013488,2]
[422534702,1779041438000,-713.8621957,0.00013493,2]
[422534707,1779041438000,-154.55661821,0.00013533,2]
[422534703,1779041438000,-1000.0,0.000135,2]
[422534710,1779041438000,-150.0,0.00013543,2]
[422534711,1779041438000,-154.55661821,0.00013548,2]
[422534712,1779041438000,-150.0,0.00013556,2]
[422534708,1779041438000,-150.0,0.00013538,2]
[422534704,1779041438000,-154.55661821,0.00013503,2]
[422534706,1779041438000,-150.0,0.00013533,2]
[422534709,1779041438000,-150.0,0.00013538,2]
[422534713,1779041438000,-154.55661821,0.00013563,2]
[422534649,1779041438000,-151.0,0.00012795,2]
[422534682,1779041438000,-150.0,0.00013196,2]
[422534689,1779041438000,-150.0,0.00013488,2]
[422534695,1779041438000,-150.0,0.00013488,2]
[422534688,1779041438000,-63041.26698456,0.00013432,2]
[422534658,1779041438000,-2049.126,0.00012797,2]
[422534679,1779041438000,-1680.0,0.0001316,2]
[422534656,1779041438000,-1088.76306742,0.00012797,3]
[422534652,1779041438000,-151.0,0.00012795,2]
[422534660,1779041438000,-155.144,0.00012797,2]
[422534662,1779041438000,-1102.65356766,0.00012797,3]
[422534677,1779041438000,-420.0,0.00013134,2]
[422534665,1779041438000,-300.0,0.00012797,2]
[422534663,1779041438000,-1088.76306743,0.00012797,3]
[422534674,1779041438000,-39519.82549059,0.00013018,2]
[422534676,1779041438000,-1913.9,0.00013107,2]
[422534666,1779041438000,-3000.0,0.000128,4]
[422534668,1779041438000,-1913.9,0.00012809,2]
[422534675,1779041438000,-718.72434885,0.00013061,2]
[422534687,1779041438000,-3888.85547,0.00013424,2]
[422534684,1779041438000,-39519.82549059,0.00013297,2]
[422534673,1779041438000,-150.0,0.00012987,2]
[422534686,1779041438000,-1657.59094514,0.00013403,2]
[422534683,1779041438000,-1323.53,0.00013268,2]
[422534680,1779041438000,-63041.26698456,0.00013187,2]
[422534672,1779041438000,-322.17,0.00012987,2]
[422534678,1779041438000,-255.0,0.0001315,2]
[422534669,1779041438000,-3800.0,0.000129,4]
[422534667,1779041438000,-900.0,0.000128,4]
[422534670,1779041438000,-1200.0,0.000129,4]
[422534671,1779041438000,-63041.26698456,0.00012943,2]
[422534750,1779041439000,-500.0,0.00013698,2]
[422534754,1779041439000,-506.02433073,0.00013698,2]
[422534757,1779041439000,-500.0,0.00013698,2]
[422534753,1779041439000,-500.0,0.00013698,2]
[422534751,1779041439000,-500.0,0.00013698,2]
[422534746,1779041439000,-500.0,0.00013698,2]
[422534752,1779041439000,-500.0,0.00013698,2]
[422534748,1779041439000,-500.0,0.00013698,2]
[422534747,1779041439000,-500.0,0.00013698,2]
[422534756,1779041439000,-500.0,0.00013698,2]
[422534741,1779041439000,-500.0,0.00013698,2]
[422534755,1779041439000,-500.0,0.00013698,2]
[422534758,1779041439000,-504.92605126,0.00013698,2]
[422534763,1779041439000,-500.0,0.00013698,2]
[422534759,1779041439000,-230.14457524,0.00013698,2]
[422534749,1779041439000,-500.0,0.00013698,2]
[422534762,1779041439000,-500.0,0.00013698,2]
[422534768,1779041439000,-500.0,0.00013698,2]
[422534761,1779041439000,-500.0,0.00013698,2]
[422534772,1779041439000,-500.0,0.00013698,2]
[422534774,1779041439000,-500.0,0.00013698,2]
[422534764,1779041439000,-500.0,0.00013698,2]
[422534773,1779041439000,-500.0,0.00013698,2]
[422534769,1779041439000,-500.0,0.00013698,2]
[422534771,1779041439000,-529.54071265,0.00013698,2]
[422534739,1779041439000,-500.0,0.00013698,2]
[422534760,1779041439000,-500.0,0.00013698,2]
[422534737,1779041439000,-150.0,0.00013687,2]
[422534724,1779041439000,-154.55661821,0.00013624,2]
[422534743,1779041439000,-500.0,0.00013698,2]
[422534765,1779041439000,-500.0,0.00013698,2]
[422534714,1779041439000,-39519.82549059,0.00013575,2]
[422534723,1779041439000,-150.0,0.00013624,2]
[422534722,1779041439000,-150.0,0.00013624,2]
[422534717,1779041439000,-150.0,0.00013588,2]
[422534716,1779041439000,-154.55661821,0.00013578,2]
[422534721,1779041439000,-154.55661821,0.00013609,2]
[422534715,1779041439000,-150.0,0.00013578,2]
[422534719,1779041439000,-154.55661821,0.00013594,2]
[422534718,1779041439000,-150.0,0.00013588,2]
[422534720,1779041439000,-150.0,0.00013599,2]
[422534726,1779041439000,-150.0,0.00013638,2]
[422534736,1779041439000,-150.0,0.00013687,2]
[422534725,1779041439000,-150.0,0.00013638,2]
[422534728,1779041439000,-154.55661821,0.00013639,2]
[422534727,1779041439000,-150.0,0.00013638,2]
[422534730,1779041439000,-154.55661821,0.00013654,2]
[422534729,1779041439000,-150.0,0.00013654,2]
[422534731,1779041439000,-150.0,0.00013669,2]
[422534732,1779041439000,-154.55661821,0.00013669,2]
[422534735,1779041439000,-154.55661821,0.00013684,2]
[422534733,1779041439000,-63041.26698456,0.00013677,2]
[422534734,1779041439000,-461.03105399,0.00013679,2]
[422534742,1779041439000,-500.0,0.00013698,2]
[422534744,1779041439000,-573.0866294,0.00013698,2]
[422534740,1779041439000,-500.0,0.00013698,2]
[422534745,1779041439000,-500.0,0.00013698,2]
[422534738,1779041439000,-150.0,0.00013692,2]
[422534767,1779041439000,-500.0,0.00013698,2]
[422534810,1779041439000,-500.0,0.00013698,2]
[422534770,1779041439000,-500.0,0.00013698,2]
[422534804,1779041439000,-500.0,0.00013698,2]
[422534807,1779041439000,-500.0,0.00013698,2]
[422534805,1779041439000,-500.0,0.00013698,2]
[422534808,1779041439000,-500.0,0.00013698,2]
[422534811,1779041439000,-500.0,0.00013698,2]
[422534831,1779041439000,-546.02,0.00013699,2]
[422534813,1779041439000,-500.0,0.00013698,2]
[422534815,1779041439000,-500.0,0.00013698,2]
[422534820,1779041439000,-500.0,0.00013698,2]
[422534816,1779041439000,-500.0,0.00013698,2]
[422534817,1779041439000,-500.0,0.00013698,2]
[422534812,1779041439000,-500.0,0.00013698,2]
[422534809,1779041439000,-500.0,0.00013698,2]
[422534819,1779041439000,-500.0,0.00013698,2]
[422534822,1779041439000,-500.0,0.00013698,2]
[422534814,1779041439000,-500.0,0.00013698,2]
[422534836,1779041439000,-348.0,0.00013699,2]
[422534835,1779041439000,-348.0,0.00013699,2]
[422534824,1779041439000,-500.0,0.00013698,2]
[422534834,1779041439000,-348.0,0.00013699,2]
[422534829,1779041439000,-500.0,0.00013698,2]
[422534826,1779041439000,-500.0,0.00013698,2]
[422534830,1779041439000,-534.8114487,0.00013698,2]
[422534832,1779041439000,-348.0,0.00013699,2]
[422534833,1779041439000,-348.0,0.00013699,2]
[422534766,1779041439000,-500.0,0.00013698,2]
[422534818,1779041439000,-500.0,0.00013698,2]
[422534806,1779041439000,-500.0,0.00013698,2]
[422534821,1779041439000,-500.0,0.00013698,2]
[422534802,1779041439000,-502.07620855,0.00013698,2]
[422534803,1779041439000,-500.0,0.00013698,2]
[422534786,1779041439000,-500.0,0.00013698,2]
[422534782,1779041439000,-500.0,0.00013698,2]
[422534777,1779041439000,-500.0,0.00013698,2]
[422534781,1779041439000,-500.0,0.00013698,2]
[422534783,1779041439000,-500.0,0.00013698,2]
[422534778,1779041439000,-500.0,0.00013698,2]
[422534776,1779041439000,-500.0,0.00013698,2]
[422534780,1779041439000,-500.0,0.00013698,2]
[422534787,1779041439000,-500.0,0.00013698,2]
[422534779,1779041439000,-500.0,0.00013698,2]
[422534785,1779041439000,-500.0,0.00013698,2]
[422534784,1779041439000,-500.0,0.00013698,2]
[422534788,1779041439000,-500.0,0.00013698,2]
[422534775,1779041439000,-500.0,0.00013698,2]
[422534801,1779041439000,-500.0,0.00013698,2]
[422534796,1779041439000,-500.0,0.00013698,2]
[422534790,1779041439000,-500.0,0.00013698,2]
[422534789,1779041439000,-500.0,0.00013698,2]
[422534793,1779041439000,-500.0,0.00013698,2]
[422534799,1779041439000,-500.0,0.00013698,2]
[422534800,1779041439000,-500.0,0.00013698,2]
[422534798,1779041439000,-500.0,0.00013698,2]
[422534792,1779041439000,-500.0,0.00013698,2]
[422534795,1779041439000,-500.0,0.00013698,2]
[422534794,1779041439000,-530.09266044,0.00013698,2]
[422534791,1779041439000,-207.93646166,0.00013698,2]